bitfinex/quotes_ETHUSD_20240816
["timestamp","ask_amount","ask_price","bid_price","bid_amount"]
[1723811535798,2.4222,2580.3,2579.1,3.6291185]
[1723811535799,6.2978,2580.3,2579.6,3.87646]
[1723811536048,6.2978,2580.3,2579.6,3.87645]
[1723811536049,6.29784,2580.3,2579.6,3.87645]
[1723811536227,6.29784,2580.3,2579.1,38.87722]
[1723811536228,3.87591,2580.1,2579.2,3.87709]
[1723811536429,3.87591,2580.1,2579.1,35.0]
[1723811536430,3.87637,2579.8,2579.1,35.0]
[1723811536597,3.87672,2579.5,2578.8,0.005]
[1723811536806,3.87632,2579.8,2579.1,3.87722]
[1723811537043,4.37374554,2580.0,2579.1,3.87731]
[1723811537223,2.4222,2580.3,2578.8,0.005]
[1723811537224,2.4222,2580.3,2579.7,3.87628]
[1723811537434,3.61999999,2581.4,2579.7,3.87628]
[1723811537435,2.4401,2580.9,2579.9,3.87606]
[1723811537757,2.4401,2580.9,2579.7,0.387628]
[1723811537758,2.4401,2580.9,2580.0,3.87592]
[1723811537900,3.87298,2582.0,2581.0,3.87434]
[1723811538122,3.87298,2582.0,2581.0,7.74892]
[1723811538123,4.0,2581.1,2581.0,7.74892]
[1723811538370,3.19178851,2581.1,2581.0,7.74892]
[1723811538569,3.19178851,2581.1,2581.0,3.87446]
[1723811538878,3.19178851,2581.1,2581.0,12.560826]
[1723811539032,1.75510911,2581.1,2581.0,15.560826]
[1723811539226,3.87165,2582.9,2582.1,3.87278]
[1723811539432,3.87165,2582.9,2582.2,3.8726]
[1723811539637,2.3957,2583.0,2582.3,3.87251]
[1723811539839,2.3957,2583.0,2582.7,3.87182]
[1723811540039,4.0,2582.8,2582.7,3.87182]
[1723811540247,4.0,2582.8,2582.7,7.74373]
[1723811540447,4.0,2582.8,2582.7,12.16564]
[1723811540674,4.0,2582.8,2582.7,9.455303]
[1723811540859,4.0,2582.8,2582.7,8.29373]
[1723811541168,4.0,2582.8,2582.7,12.16564]
[1723811541533,4.0,2582.8,2582.7,43.29373]
[1723811541728,4.0,2582.8,2582.5,3.87211]
[1723811542077,4.0,2582.6,2582.5,7.74442]
[1723811542242,4.0,2582.6,2582.5,47.003841]
[1723811542565,4.0,2582.6,2582.5,8.681631]
[1723811542765,3.87072,2583.5,2582.5,3.87221]
[1723811542927,3.87021,2583.9,2582.1,35.0]
[1723811543128,3.87044,2583.7,2582.4,3.87229]
[1723811543376,2.451,2584.0,2582.9,3.87149]
[1723811543377,3.87025,2583.9,2582.9,3.87149]
[1723811543593,3.87073,2583.5,2582.5,4.42215]
[1723811543727,2.441,2583.3,2581.7,0.3863]
[1723811543928,2.441,2583.3,2581.7,3.87331]
[1723811543929,0.07615487,2583.2,2581.7,3.87331]
[1723811544169,0.07615487,2583.2,2581.0,0.387446]
[1723811544170,2.441,2582.1,2581.0,0.387446]
[1723811544476,2.441,2582.1,2580.3,35.0]
[1723811544477,2.51715487,2582.1,2581.3,3.87389]
[1723811544693,2.441,2582.1,2581.3,3.87389]
[1723811544825,2.441,2582.1,2581.5,3.87359]
[1723811545027,2.441,2582.1,2581.7,3.87331]
[1723811545280,0.25171549,2583.2,2582.1,3.87275]
[1723811545281,2.4301,2582.8,2582.1,3.87275]
[1723811545426,2.4301,2582.8,2582.2,3.87265]
[1723811545641,2.4301,2582.8,2581.2,0.87173343]
[1723811545642,0.07615487,2582.7,2581.5,3.8736]
[1723811545850,3.060258,2582.8,2581.1,4.261596]
[1723811545851,3.87212,2582.6,2581.1,0.387426]
[1723811546050,6.30193,2582.8,2581.8,3.87313]
[1723811546281,0.84194071,2582.7,2581.3,3.8739]
[1723811546457,3.87239,2582.4,2581.3,3.8739]
[1723811546660,3.94879487,2582.3,2581.5,3.87369]
[1723811546866,3.87333,2581.8,2581.1,3.87426]
[1723811547178,2.3581,2582.1,2580.6,0.441925]
[1723811547378,0.07615487,2582.0,2580.6,0.54398]
[1723811547564,0.07615487,2582.0,2580.3,35.61528597]
[1723811547565,3.87337,2581.8,2581.1,3.87431]
[1723811547766,0.07615487,2581.7,2581.2,3.87413]
[1723811547976,4.11643549,2582.0,2580.9,3.8746]
[1723811547977,0.07615487,2581.6,2580.9,3.8746]
[1723811548185,4.11644549,2582.0,2580.4,7.68475125]
[1723811548500,2.3581,2582.1,2580.9,3.87455]
[1723811548820,6.23102,2582.1,2581.3,3.87389]
[1723811548945,2.3581,2582.1,2581.5,3.8736]
[1723811549477,6.23094,2582.1,2581.3,3.87395]
[1723811549988,6.23094,2582.1,2580.5,10.66959502]
[1723811549989,2.3581,2582.1,2581.4,3.87374]
[1723811550189,3.87323,2581.9,2580.5,6.79445502]
[1723811550396,0.07615487,2581.8,2580.6,3.87496]
[1723811550722,0.07615487,2582.0,2580.8,3.87466]
[1723811550876,3.87341,2581.8,2581.0,3.87444]
[1723811551434,4.11643549,2582.0,2581.2,3.87406]
[1723811551739,0.1279979,2581.9,2581.2,3.87406]
[1723811551937,0.1279979,2581.9,2580.6,3.87496]
[1723811551938,7.74735,2581.6,2580.6,3.87496]
[1723811552142,3.87382,2581.5,2580.7,3.87479]
[1723811552352,0.12802259,2581.4,2580.6,3.87495]
[1723811552649,3.87367,2581.6,2580.8,3.87464]
[1723811552858,3.87302,2582.0,2580.6,0.387495]
[1723811553054,0.12800566,2581.9,2581.0,3.87436]
[1723811553359,2.3581,2582.1,2580.1,3.87579]
[1723811553510,0.36381113,2582.0,2580.2,0.55]
[1723811553691,3.87412,2581.3,2580.3,3.87544]
[1723811554048,0.07615487,2581.2,2580.5,3.8751]
[1723811554346,3.87397,2581.4,2580.7,3.87491]
[1723811554683,3.87411,2581.3,2580.5,7.7502]
[1723811554810,4.261169,2581.5,2580.7,3.87488]
[1723811555131,4.00193191,2581.4,2580.6,3.875]
[1723811555292,3.87391,2581.4,2580.6,3.875]
[1723811555625,3.87402,2581.3,2580.5,7.75018]
[1723811555838,3.87402,2581.3,2580.5,3.87509]
[1723811555986,4.261169,2581.5,2580.7,3.8749]
[1723811555987,3.87389,2581.4,2580.7,3.8749]
[1723811556326,3.0,2582.3,2581.1,3.87418]
[1723811556527,0.12799704,2582.0,2581.1,3.87421]
[1723811556702,6.23099,2582.1,2581.1,3.87424]
[1723811556703,2.3581,2582.1,2581.1,3.87424]
[1723811556900,2.3581,2582.1,2581.6,3.87354]
[1723811557114,2.3581,2582.1,2581.2,0.55]
[1723811557302,0.20415841,2582.0,2581.0,3.87439]
[1723811557502,0.20415841,2582.0,2580.5,9.9065]
[1723811557503,0.12800354,2581.9,2580.5,8.32719]
[1723811557698,3.87352,2581.7,2580.9,3.87456]
[1723811557896,0.12800354,2581.6,2580.9,3.87456]
[1723811558091,3.87352,2581.7,2580.5,8.32718]
[1723811558330,0.07615487,2581.6,2580.6,0.832718]
[1723811558490,4.00177576,2581.5,2580.8,3.87474]
[1723811558696,3.87348,2581.7,2581.0,3.87444]
[1723811558928,0.12801564,2581.6,2581.0,3.87444]
[1723811559104,3.87322,2581.9,2581.1,3.87421]
[1723811559422,0.12801538,2581.8,2581.1,3.87421]
[1723811559598,2.3581,2582.1,2581.5,3.87368]
[1723811559803,2.3581,2582.1,2581.7,3.87339]
[1723811560006,2.3581,2582.1,2581.7,3.8733]
[1723811560416,2.3581,2582.1,2581.9,3.873]
[1723811560640,0.60727326,2582.6,2582.0,3.87295]
[1723811560793,3.87239,2582.4,2581.6,3.87347]
[1723811561104,2.3032,2582.8,2582.4,3.87235]
[1723811561305,0.60724688,2583.0,2582.4,3.87226]
[1723811561507,2.3032,2583.3,2582.7,3.87191]
[1723811561726,2.3032,2583.3,2582.0,0.07744153]
[1723811561727,0.12793575,2583.2,2582.3,3.87248]
[1723811561945,0.60709369,2583.9,2582.3,3.87248]
[1723811561946,4.47726369,2583.9,2583.1,3.87128]
[1723811562096,2.3196,2584.0,2583.3,3.87092]
[1723811562097,6.18958,2584.0,2583.3,3.87092]
[1723811562299,2.59185038,2584.0,2583.3,3.87091]
[1723811562557,2.3196,2584.0,2583.3,3.87093]
[1723811562699,2.3196,2584.0,2583.5,3.87064]
[1723811562909,2.3196,2584.0,2583.5,3.8707]
[1723811563347,2.3196,2584.0,2583.1,35.0]
[1723811563348,3.94627487,2583.9,2583.1,38.87118]
[1723811563643,3.94627487,2583.9,2583.1,7.74239]
[1723811563644,3.94635487,2583.9,2583.1,7.74239]
[1723811563797,3.94635487,2583.9,2583.1,3.87118]
[1723811563798,3.87029,2583.8,2583.1,3.87118]
[1723811564000,4.95994136,2583.9,2582.9,3.8715]
[1723811564001,0.07615487,2583.7,2582.9,3.8715]
[1723811564265,3.94669487,2583.7,2583.0,3.87132]
[1723811564479,1.01358649,2583.9,2583.2,3.87108]
[1723811564637,1.01358649,2583.9,2583.1,3.87121]
[1723811564638,4.88381649,2583.9,2583.1,3.87121]
[1723811564843,2.3196,2584.0,2582.5,4.452]
[1723811565173,2.55156,2584.0,2583.0,3.87133]
[1723811565331,2.3196,2584.0,2583.4,3.8708]
[1723811565526,2.3196,2584.0,2583.4,3.87075]
[1723811565981,2.3196,2584.0,2583.6,3.87055]
[1723811566130,2.3196,2584.0,2583.4,3.87075]
[1723811566459,2.3196,2584.0,2583.0,3.87142]
[1723811566460,3.94636487,2583.9,2583.0,3.87134]
[1723811566647,3.87041,2583.7,2582.8,3.87168]
[1723811566851,0.07615487,2583.9,2582.6,0.4452]
[1723811567059,0.07615487,2583.9,2582.8,3.87163]
[1723811567060,3.87058,2583.6,2582.8,3.87163]
[1723811567250,3.94687487,2583.5,2582.8,3.87163]
[1723811567484,3.94687487,2583.5,2581.3,0.79905296]
[1723811567485,3.87115,2583.3,2582.4,3.87228]
[1723811567624,3.87098,2583.4,2582.1,3.8728]
[1723811567625,2.3726,2583.1,2582.1,3.8728]
[1723811567830,2.3726,2583.1,2581.8,3.87314]
[1723811567831,3.87219,2582.6,2581.8,3.87314]
[1723811568080,0.07615487,2582.7,2581.9,3.87299]
[1723811568456,0.07615487,2582.7,2581.8,3.87321]
[1723811568457,0.32103036,2583.0,2581.8,3.87321]
[1723811568672,3.87249,2582.4,2581.6,7.74693]
[1723811568899,3.87252,2582.3,2581.6,3.87346]
[1723811569235,3.8729,2582.1,2581.4,3.87385]
[1723811569542,3.87322,2581.9,2581.0,8.32635]
[1723811569737,0.07615487,2581.8,2581.1,3.87422]
[1723811569939,4.57421334,2582.1,2581.4,3.87377]
[1723811570142,2.2827,2582.2,2581.5,3.87357]
[1723811570463,3.94902487,2582.1,2581.4,3.87386]
[1723811570665,6.15545,2582.2,2581.5,3.87371]
[1723811570961,2.2827,2582.2,2581.5,3.8736]
[1723811571260,2.2827,2582.2,2581.5,3.87361]
[1723811571837,3.8729,2582.1,2581.3,3.87395]
[1723811572037,3.8729,2582.1,2581.4,3.87379]
[1723811572252,2.898231,2582.2,2581.6,3.87353]
[1723811572556,2.2827,2582.2,2581.5,3.87358]
[1723811572858,2.2827,2582.2,2581.0,4.452]
[1723811572859,3.94905487,2582.1,2581.1,3.87425]
[1723811573063,3.8732,2581.9,2581.0,4.452]
[1723811573435,0.61553,2582.1,2581.3,3.87386]
[1723811573636,3.87322,2581.9,2581.1,3.87431]
[1723811574262,2.2827,2582.2,2581.2,7.74815]
[1723811574466,3.87298,2582.0,2581.2,7.74813]
[1723811574769,3.87316,2581.9,2581.2,7.74813]
[1723811574973,3.87316,2581.9,2581.2,3.87406]
[1723811575307,2.51097,2582.2,2581.4,3.87373]
[1723811575435,3.87192,2582.7,2582.0,3.87294]
[1723811575639,3.87237,2582.4,2581.8,3.87317]
[1723811575955,0.07615487,2582.4,2581.5,4.452]
[1723811576141,3.87297,2582.0,2581.4,3.87377]
[1723811576339,3.87259,2582.3,2581.4,3.87377]
[1723811576580,2.36795487,2582.2,2581.0,8.32637]
[1723811576783,0.12799738,2582.1,2580.7,3.87483]
[1723811576985,3.8738,2581.5,2580.8,3.87465]
[1723811577170,3.8738,2581.5,2580.6,3.87499]
[1723811577171,3.87422,2581.2,2580.6,3.87493]
[1723811577372,0.38738,2581.5,2580.4,3.87528]
[1723811577373,3.95047487,2581.1,2580.4,3.87528]
[1723811577683,0.07615487,2581.1,2580.0,4.452]
[1723811577844,3.87477,2580.8,2580.1,3.8758]
[1723811578044,3.87477,2580.8,2580.0,8.32786]
[1723811578045,0.07615487,2580.7,2580.0,8.32786]
[1723811578310,3.87495,2580.7,2579.8,3.87616]
[1723811578452,0.23895,2581.1,2579.5,4.452]
[1723811578453,4.11338,2581.1,2580.2,3.87564]
[1723811578651,2.3895,2581.2,2580.4,3.87528]
[1723811578873,3.87432,2581.1,2580.4,3.87528]
[1723811579073,3.87449,2581.0,2580.2,3.87555]
[1723811579314,3.8747,2580.9,2580.1,3.87577]
[1723811579455,3.8747,2580.9,2580.0,3.87588]
[1723811579657,3.87492,2580.7,2580.0,3.87588]
[1723811580176,3.87492,2580.7,2580.0,3.87585]
[1723811580387,2.3895,2581.2,2580.3,3.87542]
[1723811580596,2.3895,2581.2,2580.1,3.87572]
[1723811580597,3.87477,2580.8,2580.1,3.87572]
[1723811581099,3.87546,2580.4,2579.7,3.87631]
[1723811581389,3.87546,2580.4,2579.3,5.4461]
[1723811581390,3.87598,2580.0,2579.3,7.75384]
[1723811581591,0.07615487,2580.1,2579.3,3.87691]
[1723811581889,3.87572,2580.2,2579.3,3.87691]
[1723811582189,2.2771,2580.4,2579.9,3.87603]
[1723811582413,3.87451,2581.0,2579.5,8.32865]
[1723811582414,2.3786,2580.9,2579.5,8.32865]
[1723811582688,2.3751,2581.4,2580.1,3.87574]
[1723811582891,3.87418,2581.2,2580.5,3.8751]
[1723811583133,3.87418,2581.2,2580.2,0.832774]
[1723811583134,6.48657,2581.4,2580.7,3.87481]
[1723811583301,6.24906,2581.4,2580.7,3.87481]
[1723811583592,6.24906,2581.4,2580.6,3.87494]
[1723811583795,3.87504,2580.7,2579.8,3.87626]
[1723811584091,3.87504,2580.7,2579.6,0.832865]
[1723811584092,3.87539,2580.4,2579.6,3.87643]
[1723811584256,6.25488,2580.6,2579.8,3.87625]
[1723811584457,6.25488,2580.6,2579.6,7.75295]
[1723811584759,3.87567,2580.2,2579.4,4.1627091]
[1723811584973,3.87607,2580.0,2579.3,3.87698]
[1723811585183,0.07615487,2580.1,2579.4,3.87684]
[1723811585391,3.87573,2580.2,2579.4,3.87684]
[1723811585392,3.87573,2580.2,2579.5,3.8767]
[1723811585696,3.87643,2579.7,2579.0,3.87738]
[1723811585893,6.2548,2580.6,2578.8,3.88263]
[1723811585894,3.87687,2579.4,2578.8,3.88263]
[1723811586095,3.87687,2579.4,2578.8,0.005]
[1723811586305,3.95302487,2579.4,2578.8,0.005]
[1723811586607,2.4987,2579.8,2578.8,0.005]
[1723811586901,2.4987,2579.8,2579.0,3.87738]
[1723811586902,3.87651,2579.7,2579.0,3.87738]
[1723811587086,2.4987,2579.8,2578.8,0.005]
[1723811587401,2.4965,2580.2,2579.4,3.87673]
[1723811587606,2.4965,2580.2,2579.7,3.8764]
[1723811587907,2.4965,2580.2,2578.8,0.005]
[1723811588104,2.3585,2580.0,2578.8,0.005]
[1723811588404,3.87749,2579.0,2578.8,0.005]
[1723811588604,0.07615487,2578.9,2578.8,0.005]
[1723811588906,3.87749,2579.0,2578.8,0.005]
[1723811589067,7.83139487,2578.9,2578.8,0.005]
[1723811589735,11.70901487,2578.9,2578.8,0.005]
[1723811589893,0.23585,2579.0,2578.8,0.005]
[1723811590233,11.70901487,2578.9,2578.8,0.005]
[1723811590538,7.75524,2578.9,2578.8,0.005]
[1723811590826,3.87762,2578.9,2578.8,0.005]
[1723811591036,2.3585,2579.1,2578.8,0.005]
[1723811591192,3.87703,2579.3,2578.8,0.005]
[1723811591400,2.2637,2579.6,2579.0,3.87739]
[1723811591623,2.2637,2580.1,2579.0,0.388239]
[1723811591849,0.38748,2580.7,2579.6,3.87647]
[1723811591995,6.13838,2580.9,2579.3,4.452]
[1723811591996,3.87531,2580.5,2579.3,4.452]
[1723811592194,3.87531,2580.5,2579.5,3.87658]
[1723811592391,3.87531,2580.5,2579.8,3.87615]
[1723811592392,0.387531,2580.5,2579.8,3.87615]
[1723811592595,3.87485,2580.8,2580.0,3.87586]
[1723811592839,3.87485,2580.8,2580.0,3.87587]
[1723811593010,2.4182,2581.5,2580.1,3.95321915]
[1723811593333,2.4182,2581.5,2580.3,3.87544]
[1723811593508,2.4182,2581.5,2580.2,0.55]
[1723811593851,6.29204,2581.5,2580.6,3.87505]
[1723811594015,3.87401,2581.3,2580.6,3.87505]
[1723811594351,6.29203,2581.5,2580.7,7.74969]
[1723811594549,6.29203,2581.5,2580.7,3.87479]
[1723811594550,2.4182,2581.5,2580.7,3.87479]
[1723811594697,6.29206,2581.5,2580.7,3.87479]
[1723811594897,2.4182,2581.5,2580.7,7.74961]
[1723811595158,3.8736,2581.6,2580.9,3.87457]
[1723811595337,0.387329,2581.7,2580.9,3.87457]
[1723811595338,3.87341,2581.7,2581.0,3.87436]
[1723811595536,3.87341,2581.7,2580.9,7.74904]
[1723811595831,6.29829,2581.9,2580.9,0.8524001]
[1723811596051,3.87283,2582.1,2581.2,3.87402]
[1723811596226,3.87258,2582.3,2581.5,3.87361]
[1723811596562,3.87343,2581.7,2580.8,4.452]
[1723811596704,3.87321,2581.9,2581.1,3.87431]
[1723811596906,3.87321,2581.9,2580.9,3.87458]
[1723811597099,3.87321,2581.9,2581.0,3.87441]
[1723811597100,3.87353,2581.7,2581.0,3.87441]
[1723811597301,3.87287,2582.1,2580.6,0.37747624]
[1723811597649,3.87287,2582.1,2580.3,4.452]
[1723811597650,3.87314,2581.9,2580.9,3.8745]
[1723811597804,3.87342,2581.7,2581.0,3.87437]
[1723811598002,4.259888,2582.3,2581.4,3.87379]
[1723811598223,3.87178,2582.8,2581.4,3.87379]
[1723811598602,0.40306584,2582.9,2581.4,3.87379]
[1723811598603,0.40306584,2582.9,2582.2,3.87255]
[1723811598723,0.26713658,2582.8,2582.1,3.8727]
[1723811598924,3.87206,2582.6,2581.8,3.87314]
[1723811599206,3.8719,2582.8,2581.9,0.55]
[1723811599340,3.87179,2582.8,2581.9,0.55]
[1723811599521,3.87196,2582.7,2582.0,3.87287]
[1723811599720,2.2683,2583.0,2582.2,3.87255]
[1723811599721,10.01143,2583.0,2582.2,3.87255]
[1723811600021,3.87186,2582.8,2582.0,3.87287]
[1723811600219,3.87184,2582.8,2582.0,3.87296]
[1723811600419,3.87184,2582.8,2582.0,3.87286]
[1723811600704,6.13984,2583.0,2582.1,3.87275]
[1723811600705,3.87154,2583.0,2582.1,3.87275]
[1723811600973,3.87034,2583.8,2582.7,3.87181]
[1723811601122,0.40299144,2583.9,2582.7,3.87181]
[1723811601123,3.87073,2583.5,2582.7,7.74368]
[1723811601473,2.4619,2583.9,2583.0,3.87139]
[1723811601474,4.28015522,2583.8,2583.0,3.87139]
[1723811601781,2.4619,2583.9,2582.8,0.55]
[1723811601782,3.87097,2583.4,2582.8,0.55]
[1723811601935,2.4619,2583.9,2582.1,3.87281]
[1723811601936,3.87156,2583.0,2582.1,3.87281]
[1723811602144,0.07615487,2583.3,2582.2,0.55]
[1723811602145,4.258237,2583.3,2582.2,0.55]
[1723811602409,3.87166,2582.9,2582.0,0.565914]
[1723811602676,3.87153,2583.0,2582.1,3.87269]
[1723811602878,0.07615487,2583.0,2581.5,0.387379]
[1723811603177,0.07615487,2583.0,2580.1,3.92576]
[1723811603178,3.8727,2582.2,2580.8,6.845]
[1723811603494,3.87366,2581.6,2580.8,6.26766]
[1723811603671,3.87338,2581.8,2581.0,3.87444]
[1723811603888,3.87338,2581.8,2580.8,3.87466]
[1723811603889,3.87366,2581.6,2580.8,3.87466]
[1723811604021,3.87342,2581.7,2580.8,3.87466]
[1723811604231,0.23687,2582.1,2580.6,3.87504]
[1723811604232,3.87382,2581.5,2580.6,3.87504]
[1723811604466,3.87402,2581.3,2580.6,3.87504]
[1723811604624,3.87348,2581.7,2580.3,4.452]
[1723811604824,4.1097,2582.1,2580.9,3.8746]
[1723811604825,3.87312,2581.9,2580.9,3.8746]
[1723811605179,3.87337,2581.8,2581.1,3.87421]
[1723811605386,4.72407387,2581.8,2580.9,3.87449]
[1723811605668,3.87303,2582.0,2581.1,3.8742]
[1723811605919,0.64786,2582.0,2580.9,3.87451]
[1723811606221,3.87407,2581.3,2580.3,3.87541]
[1723811606433,3.87451,2581.0,2580.2,3.87562]
[1723811606632,3.87471,2580.9,2580.1,3.87568]
[1723811606793,0.07615487,2581.2,2580.2,0.618308]
[1723811606794,3.87434,2581.1,2580.2,0.618308]
[1723811606990,3.87434,2581.1,2580.3,3.8754]
[1723811607207,3.87448,2581.0,2580.3,3.8754]
[1723811607524,3.87423,2581.2,2580.3,3.8754]
[1723811607687,3.87442,2581.1,2580.3,3.8754]
[1723811607889,3.87442,2581.1,2579.9,4.26236]
[1723811607890,0.85101987,2581.1,2579.9,3.87607]
[1723811608092,0.85101987,2581.1,2579.7,3.87629]
[1723811608093,3.8753,2580.5,2579.7,3.87629]
[1723811608413,3.8753,2580.5,2578.7,3.87783]
[1723811608414,0.85119387,2580.5,2579.5,3.87663]
[1723811608707,3.87507,2580.6,2579.9,3.87609]
[1723811608889,3.87498,2580.7,2579.9,3.87602]
[1723811609076,3.87514,2580.6,2579.5,3.87664]
[1723811609279,3.8755,2580.4,2579.8,3.87626]
[1723811609487,3.87514,2580.6,2579.9,3.87607]
[1723811609775,3.87514,2580.6,2579.4,0.4452]
[1723811609776,3.87537,2580.4,2579.4,0.4452]
[1723811609988,3.87537,2580.4,2579.7,3.87632]
[1723811610498,3.87537,2580.4,2579.7,3.87641]
[1723811610812,4.68964635,2580.6,2579.5,3.87659]
[1723811610813,3.8756,2580.3,2579.5,3.87659]
[1723811611117,3.87513,2580.6,2579.8,3.87616]
[1723811611488,3.8754,2580.4,2579.7,3.87641]
[1723811611679,3.87567,2580.2,2579.6,3.87646]
[1723811611878,0.387513,2580.6,2579.1,2.257]
[1723811612077,3.87627,2579.8,2579.0,3.87736]
[1723811612401,2.4339,2580.1,2578.8,3.88268]
[1723811612402,3.87681,2579.5,2578.8,3.88268]
[1723811612622,2.4339,2580.1,2578.8,0.641781]
[1723811612913,3.87634,2579.8,2579.1,3.87727]
[1723811613226,3.87612,2579.9,2578.9,3.87751]
[1723811613473,3.87683,2579.5,2578.8,3.88267]
[1723811613633,2.4339,2580.1,2578.8,0.08254063]
[1723811613834,6.30983,2580.1,2578.8,0.08254063]
[1723811614034,6.30983,2580.1,2579.4,3.87682]
[1723811614393,2.4339,2580.6,2579.8,3.87624]
[1723811614587,3.8753,2580.5,2579.8,3.87624]
[1723811614734,3.87522,2580.5,2579.8,3.87617]
[1723811614935,3.87537,2580.4,2579.6,3.87643]
[1723811615135,2.4339,2580.6,2579.4,4.264462]
[1723811615136,3.87579,2580.2,2579.4,3.87678]
[1723811615331,3.87578,2580.2,2579.4,3.87678]
[1723811615634,6.30897,2580.6,2579.0,3.0]
[1723811615834,3.87546,2580.4,2579.7,3.87628]
[1723811616149,3.87546,2580.4,2579.6,3.87645]
[1723811616349,3.8753,2580.5,2579.8,3.87618]
[1723811616589,2.4339,2580.6,2579.8,3.87618]
[1723811616757,3.87538,2580.4,2579.7,3.87627]
[1723811617188,3.0,2581.4,2579.7,3.87627]
[1723811617189,2.3496,2581.0,2579.7,0.07751355]
[1723811617336,2.3496,2581.0,2580.4,3.87534]
[1723811617536,6.62639062,2581.6,2580.6,3.87499]
[1723811617832,6.62639062,2581.6,2580.0,3.87595]
[1723811617833,6.2232,2581.6,2581.0,3.87444]
[1723811618038,2.3496,2581.6,2581.1,3.87428]
[1723811618271,2.3496,2582.1,2581.2,3.87416]
[1723811618582,3.87211,2582.6,2581.2,3.87416]
[1723811618583,2.3496,2582.5,2581.2,8.29811]
[1723811618787,3.87298,2582.0,2581.3,3.87399]
[1723811618993,3.87296,2582.0,2581.2,4.42403]
[1723811619281,3.87302,2582.0,2581.1,3.87427]
[1723811619649,3.87302,2582.0,2581.3,7.7478]
[1723811619979,3.87288,2582.1,2580.6,3.87505]
[1723811620185,3.8732,2581.9,2580.7,0.55]
[1723811620352,2.3496,2582.5,2580.7,0.55]
[1723811620535,3.8736,2581.6,2580.8,3.87464]
[1723811620738,3.87345,2581.7,2580.9,0.55]
[1723811620964,3.87319,2581.9,2581.0,3.87436]
[1723811621162,3.87336,2581.8,2581.0,7.74872]
[1723811621418,7.7458,2582.1,2581.3,3.87393]
[1723811621568,3.87288,2582.1,2581.3,3.87393]
[1723811621908,1.00475586,2582.4,2581.3,3.87393]
[1723811622124,3.87287,2582.1,2580.9,0.55]
[1723811622279,3.87287,2582.1,2580.9,3.87457]
[1723811622484,3.87259,2582.3,2581.5,3.87371]
[1723811622811,3.87296,2582.1,2581.3,3.87388]
[1723811623011,3.8729,2582.1,2581.3,3.87388]
[1723811623159,2.3496,2582.5,2581.3,3.87392]
[1723811623360,2.3496,2582.5,2580.7,0.55]
[1723811623361,3.87367,2581.6,2580.8,3.87472]
[1723811623583,3.87367,2581.6,2580.4,2.4721]
[1723811623584,7.74668,2581.8,2580.9,3.8746]
[1723811623784,3.87332,2581.8,2580.9,3.87451]
[1723811623995,3.87332,2581.8,2581.1,3.87431]
[1723811624321,3.87328,2581.8,2581.1,3.87422]
[1723811624626,3.87338,2581.8,2581.0,3.87437]
[1723811624832,3.87338,2581.8,2581.1,0.55]
[1723811624833,3.87337,2581.8,2581.1,0.55]
[1723811625025,3.87272,2582.2,2581.4,3.87386]
[1723811625341,6.57811355,2582.5,2581.2,3.87405]
[1723811625342,2.95691601,2582.5,2581.2,3.87405]
[1723811625502,7.74665,2581.8,2581.1,0.55]
[1723811625713,3.87252,2582.3,2580.3,8.32748]
[1723811625714,3.87424,2581.2,2580.3,8.32748]
[1723811626007,2.36985487,2581.7,2579.7,11.32637]
[1723811626008,3.87402,2581.3,2580.4,3.87528]
[1723811626330,3.068365,2581.7,2580.5,3.87508]
[1723811626331,0.07615487,2581.6,2580.5,3.87508]
[1723811626479,0.12803815,2581.5,2580.5,3.87508]
[1723811626683,3.87459,2581.0,2580.3,3.87538]
[1723811626879,0.23698549,2581.6,2580.5,3.87519]
[1723811627145,0.12802718,2581.5,2580.2,0.387572]
[1723811627301,3.62119754,2582.4,2581.1,3.87427]
[1723811627501,0.60731601,2582.5,2581.3,3.87388]
[1723811627502,3.87293,2582.1,2581.3,3.87388]
[1723811627685,0.387293,2582.0,2581.4,3.95132843]
[1723811628155,0.60731601,2582.5,2581.6,3.87346]
[1723811628156,3.87238,2582.4,2581.6,3.87346]
[1723811628302,4.47960601,2582.5,2581.8,3.87315]
[1723811628627,4.47960601,2582.5,2581.0,8.32634]
[1723811628628,3.8726,2582.3,2581.5,3.87363]
[1723811628826,4.92754661,2582.5,2581.2,3.95156609]
[1723811628996,4.92754661,2582.5,2581.8,7.74634]
[1723811629185,4.92754661,2582.5,2581.8,3.87317]
[1723811629407,3.872,2582.7,2581.9,0.0774561]
[1723811629586,2.4741,2582.8,2581.3,4.50135717]
[1723811629827,7.03085341,2582.8,2582.0,7.74574]
[1723811630138,3.8722,2582.6,2581.8,3.87317]
[1723811630450,3.87214,2582.6,2581.9,3.87309]
[1723811630724,6.34595,2582.8,2581.9,3.87298]
[1723811630725,3.87202,2582.7,2581.9,3.87298]
[1723811630927,3.87202,2582.7,2581.0,8.32639]
[1723811630928,3.87306,2582.0,2581.0,8.32639]
[1723811631230,0.387306,2581.9,2581.3,3.87401]
[1723811631463,2.2654,2582.5,2581.3,3.87393]
[1723811631605,3.87301,2582.0,2581.1,3.87423]
[1723811631786,3.87301,2582.0,2581.3,3.87392]
[1723811631993,3.87364,2581.6,2580.5,6.9375]
[1723811632221,0.12800623,2581.9,2581.2,7.74816]
[1723811632222,4.260431,2581.9,2581.2,7.74816]
[1723811632423,3.87367,2581.6,2580.9,3.87457]
[1723811632828,3.87367,2581.6,2580.8,3.87462]